bitfinex-derivatives/quotes_ETHF0:USTF0_20250902
["timestamp","ask_amount","ask_price","bid_price","bid_amount"]
[1756812863555,0.6886,4372.2,4372.1,0.5381]
[1756812863769,0.6886,4372.2,4372.1,0.3051]
[1756812864062,0.6886,4372.2,4372.1,0.5381]
[1756812865064,0.6886,4372.2,4372.1,0.7313]
[1756812867065,0.6886,4372.2,4372.1,0.5381]
[1756812867467,0.6886,4372.2,4372.1,0.7313]
[1756812870766,0.3001,4372.5,4372.1,0.9311]
[1756812870965,0.4944,4372.5,4372.4,0.1932]
[1756812871170,0.6886,4372.5,4372.4,0.4983]
[1756812878481,0.6886,4372.5,4372.4,0.6981]
[1756812880579,0.3885,4372.5,4372.4,0.6981]
[1756812882483,0.6857,4372.5,4372.4,0.3051]
[1756812882788,0.6857,4372.5,4372.4,0.7209]
[1756812883380,0.6857,4372.5,4372.4,0.2939]
[1756812884682,0.2972,4372.4,4371.6,0.2939]
[1756812884889,0.2972,4372.4,4371.5,40.9146]
[1756812884890,0.1994,4371.8,4371.7,0.4422]
[1756812885084,0.1994,4371.8,4371.7,0.9427]
[1756812893407,0.1994,4371.8,4371.7,0.7097]
[1756812893603,3.8972,4371.8,4371.7,0.2939]
[1756812893804,3.8972,4371.8,4371.7,0.7361]
[1756812894508,3.6,4371.8,4371.7,0.9427]
[1756812894711,0.2972,4372.2,4371.7,0.9427]
[1756812895006,3.4072,4372.4,4372.3,0.7097]
[1756812895198,3.98165428,4372.4,4372.3,0.7097]
[1756812896510,3.2078,4373.0,4372.3,0.7097]
[1756812896813,3.2078,4373.0,4372.9,0.7097]
[1756812897009,3.98176242,4373.0,4372.9,0.7097]
[1756812897308,3.4072,4373.0,4372.9,0.7097]
[1756812897907,3.2078,4373.0,4372.9,0.7097]
[1756812898300,3.2078,4373.0,4372.9,4.7097]
[1756812898498,3.2078,4373.8,4373.0,0.1172]
[1756812898709,3.4072,4373.8,4373.7,0.7097]
[1756812898912,3.98151478,4373.8,4373.7,0.7097]
[1756812899108,4.17431478,4373.8,4373.7,0.7097]
[1756812899309,4.47151478,4373.8,4373.7,0.7097]
[1756812900203,4.47151478,4373.8,4373.7,0.5031]
[1756812900515,4.47151478,4373.8,4373.7,0.7097]
[1756812900710,3.4072,4373.8,4373.7,0.7097]
[1756812902612,3.2078,4373.8,4373.7,0.7097]
[1756812902915,3.4072,4373.8,4373.7,0.7097]
[1756812903614,0.1994,4373.8,4373.7,0.7097]
[1756812904611,0.2972,4374.1,4373.7,0.7097]
[1756812904815,0.2972,4374.1,4373.8,0.2939]
[1756812905013,0.2972,4374.1,4373.5,0.1172]
[1756812905014,0.6894,4374.1,4374.0,0.4158]
[1756812905210,0.6894,4374.1,4374.0,0.7097]
[1756812905516,0.6894,4374.1,4374.0,0.5031]
[1756812907214,0.6894,4374.1,4373.1,0.4399]
[1756812907215,4.91802,4374.1,4373.1,0.4399]
[1756812907404,0.232,4374.2,4373.1,0.2939]
[1756812907405,3.8972,4373.2,4373.1,0.2939]
[1756812907609,3.8972,4373.2,4372.6,0.2939]
[1756812907816,3.8972,4373.2,4373.1,0.2092]
[1756812908017,3.8972,4373.2,4373.1,0.5031]
[1756812908216,3.8972,4373.2,4372.5,0.232]
[1756812908412,3.8972,4373.2,4372.6,0.2939]
[1756812909512,0.7137,4372.3,4372.2,3.5132]
[1756812909721,0.7137,4372.3,4372.2,3.7074]
[1756812911616,0.7137,4372.3,4372.2,3.9009]
[1756812911817,0.4149,4372.3,4372.2,3.9009]
[1756812912519,0.7137,4372.3,4372.2,3.9009]
[1756812912712,0.7137,4372.3,4371.6,40.8]
[1756812912918,0.7137,4372.3,4372.2,0.4996]
[1756812913521,0.4149,4372.3,4372.2,0.6931]
[1756812914924,3.2078,4372.7,4372.3,0.3054]
[1756812915119,3.9215,4372.7,4372.6,0.6931]
[1756812915326,3.9215,4372.7,4372.6,0.4996]
[1756812916320,3.9215,4372.7,4372.6,0.3054]
[1756812916518,0.2082,4372.2,4372.1,0.4262]
[1756812916826,0.2082,4372.2,4372.1,0.6197]
[1756812917225,0.2082,4372.2,4372.1,0.9251]
[1756812918232,0.4149,4371.6,4371.5,0.4996]
[1756812918521,0.2988,4371.5,4370.7,0.3054]
[1756812923129,0.2082,4370.8,4370.7,0.6931]
[1756812923522,0.2988,4371.2,4370.8,0.3054]
[1756812923720,0.7137,4371.2,4371.1,0.6931]
[1756812924624,0.7137,4371.2,4371.1,0.4996]
[1756812925531,0.4149,4371.2,4371.1,0.6931]
[1756812926128,0.7137,4371.2,4371.1,0.6931]
[1756812927233,0.4149,4371.2,4371.1,0.6931]
[1756812927642,0.7137,4371.2,4371.1,0.6931]
[1756812928138,0.4149,4371.2,4371.1,0.6931]
[1756812929437,0.2082,4371.2,4371.1,0.6931]
[1756812929932,3.2078,4371.6,4371.1,0.6931]
[1756812930139,3.5066,4371.6,4371.2,0.3054]
[1756812930443,3.9215,4371.6,4371.5,0.1942]
[1756812930736,3.9215,4371.6,4371.5,0.4996]
[1756812936843,3.6227,4371.6,4371.5,0.6931]
[1756812937343,3.9215,4371.6,4371.5,0.6931]
[1756812938741,0.4149,4370.8,4370.7,0.3054]
[1756812939042,3.9215,4370.8,4370.7,0.3054]
[1756812940838,3.6227,4370.8,4370.1,0.294]
[1756812941041,3.6227,4370.8,4370.1,0.696]
[1756812941042,0.4035,4370.2,4370.1,0.696]
[1756812941345,0.4035,4370.2,4370.1,0.928]
[1756812941940,0.2073,4370.2,4370.1,0.928]
[1756812942342,0.2073,4370.2,4370.1,0.696]
[1756812942844,0.2073,4370.2,4370.1,0.928]
[1756812943647,0.2073,4370.6,4370.5,0.696]
[1756812943939,3.2078,4370.8,4370.5,0.696]
[1756812944145,3.2078,4371.3,4371.2,0.402]
[1756812944352,3.4151,4371.3,4371.2,0.696]
[1756812944738,3.6113,4371.3,4371.2,0.696]
[1756812945237,3.9021,4371.3,4371.2,0.696]
[1756812946041,3.9021,4371.3,4371.2,0.4883]
[1756812946242,3.9021,4371.3,4371.0,0.294]
[1756812946638,3.9021,4371.3,4370.8,0.294]
[1756812947040,0.2908,4371.2,4370.1,0.294]
[1756812947246,0.6943,4370.7,4370.6,0.7203]
[1756812947949,0.6943,4370.7,4370.6,0.928]
[1756812948142,3.2078,4371.3,4370.6,0.634]
[1756812948446,0.2073,4371.2,4371.1,0.696]
[1756812948746,0.4035,4371.2,4371.1,0.696]
[1756812949143,0.6943,4371.2,4371.1,0.696]
[1756812951048,3.2078,4371.3,4371.1,0.402]
[1756812951240,3.4151,4371.3,4371.2,0.696]
[1756812951841,3.6113,4371.3,4371.2,0.696]
[1756812952141,3.9021,4371.3,4371.2,0.696]
[1756812952340,3.6113,4371.3,4371.2,0.696]
[1756812953546,3.9021,4371.3,4371.2,0.294]
[1756812955047,3.9021,4371.3,4371.2,0.4883]
[1756812955348,3.6113,4371.3,4371.2,0.696]
[1756812955752,3.2078,4371.3,4371.2,0.696]
[1756812956650,3.4151,4371.3,4371.2,0.696]
[1756812957349,3.2078,4371.3,4371.2,0.696]
[1756812958649,3.4151,4371.3,4371.2,0.696]
[1756812958944,3.2078,4371.3,4371.2,0.696]
[1756812960545,0.2908,4372.2,4371.3,0.294]
[1756812960741,0.6943,4372.2,4372.1,0.4883]
[1756812960941,1.26737612,4372.2,4372.1,0.4883]
[1756812962148,0.6943,4372.2,4372.1,0.4883]
[1756812962956,0.6943,4372.2,4371.9,0.294]
[1756812963451,0.6943,4372.2,4371.8,0.232]
[1756812963653,0.6943,4372.2,4371.7,0.232]
[1756812963851,0.4035,4372.2,4371.8,0.294]
[1756812964057,0.2908,4372.1,4371.7,0.232]
[1756812964353,0.4035,4371.9,4371.8,0.4883]
[1756812964754,0.4035,4371.9,4371.8,0.696]
[1756812965553,0.6943,4371.9,4371.1,0.526]
[1756812965757,3.6113,4371.3,4371.2,0.7203]
[1756812965958,3.6113,4371.3,4371.2,0.928]
[1756812970749,3.4151,4371.3,4371.2,0.928]
[1756812972263,3.6076,4371.3,4371.2,0.928]
[1756812975762,3.9175,4371.3,4371.2,0.928]
[1756812976663,0.6963,4371.8,4371.7,0.715]
[1756812976858,0.232,4372.2,4371.7,0.715]
[1756812976859,0.3099,4372.2,4371.7,0.947]
[1756812977059,0.6963,4372.2,4372.1,0.1972]
[1756812977259,0.6963,4372.2,4372.1,0.7384]
[1756812977658,0.3864,4372.2,4372.1,0.947]
[1756812981869,3.2078,4372.4,4372.1,0.6378]
[1756812982067,3.2078,4372.4,4372.3,0.4058]
[1756812982370,3.2078,4372.4,4372.3,0.715]
[1756812983167,3.2078,4373.0,4372.3,0.4058]
[1756812983370,3.2078,4373.0,4372.4,0.3092]
[1756812983672,3.5942,4373.0,4372.9,0.715]
[1756812984473,0.3864,4373.0,4372.9,0.715]
[1756812984669,0.1939,4373.0,4372.9,0.715]
[1756812985575,3.5177,4373.6,4372.9,0.4058]
[1756812985773,3.9041,4373.6,4373.5,0.5064]
[1756812985970,4.47621512,4373.6,4373.5,0.5064]
[1756812987178,3.5942,4373.6,4373.5,0.715]
[1756812987378,3.9041,4373.6,4373.5,0.715]
[1756812988078,3.9041,4373.6,4373.5,0.3092]
[1756812988972,3.9041,4373.6,4373.5,0.5064]
[1756812989179,3.9041,4373.6,4373.5,0.3092]
[1756812990281,3.4017,4373.6,4373.5,0.715]
[1756812991077,3.2078,4373.6,4373.5,0.715]
[1756812991874,3.4017,4373.6,4373.5,0.715]
[1756812992479,3.5942,4373.6,4373.5,0.715]
[1756812994981,3.4017,4373.6,4373.5,0.715]
[1756812995179,3.2078,4373.6,4373.5,0.8301]
[1756812995781,3.2078,4373.6,4373.5,1.0621]
[1756812998078,3.2078,4373.6,4373.5,41.8621]
[1756813000086,0.2002,4373.7,4373.6,0.2914]
[1756813000283,0.2002,4373.7,4373.6,0.6888]
[1756813003984,0.3104,4374.1,4373.7,0.2914]
[1756813004183,0.5106,4374.1,4374.0,0.3974]
[1756813004479,0.2002,4374.1,4374.0,0.9208]
[1756813006584,0.4095,4374.1,4374.0,0.9208]
[1756813006985,3.408,4374.3,4374.2,0.3974]
[1756813007292,3.9277,4374.3,4374.2,0.6888]
[1756813010998,0.4095,4374.3,4374.2,0.6888]
[1756813013996,3.2078,4374.8,4374.3,0.2914]
[1756813014194,3.408,4374.8,4374.7,0.3974]
[1756813014497,3.408,4374.8,4374.7,0.6888]
[1756813015795,0.2002,4374.8,4374.7,0.6888]
[1756813016694,3.9277,4374.8,4374.2,3.2078]
[1756813017002,0.7199,4374.5,4374.4,0.4869]
[1756813017202,0.4095,4374.5,4374.4,0.6888]
[1756813019499,0.7199,4374.5,4374.4,0.4869]
[1756813019703,0.7199,4374.5,4374.4,0.7189]
[1756813020395,0.7199,4374.5,4374.4,0.4869]
[1756813020597,0.7199,4374.5,4374.4,0.7189]
[1756813021201,0.7199,4374.5,4374.4,0.9208]
[1756813021497,0.7199,4374.5,4374.2,0.2914]
[1756813021705,0.7199,4374.4,4374.3,0.232]
[1756813022797,0.7199,4374.4,4374.3,0.5234]
[1756813023192,0.7199,4374.4,4374.2,0.232]
[1756813023399,3.9277,4374.3,4374.2,0.7189]
[1756813026011,3.6173,4374.3,4374.2,0.9208]
[1756813027106,3.9277,4374.3,4374.2,0.9208]
[1756813027904,3.2078,4374.3,4374.2,0.9208]
[1756813028104,3.2078,4374.3,4374.2,5.14940999]
[1756813028706,3.2078,4374.3,4374.2,4.9208]
[1756813029606,0.2018,4374.3,4374.2,0.9208]
[1756813030002,0.689,4374.9,4374.8,0.5]
[1756813030208,0.689,4374.9,4374.8,0.732]
[1756813031312,0.4047,4374.9,4374.8,0.9402]
[1756813031614,0.2018,4374.9,4374.8,0.9402]
[1756813031915,0.689,4374.9,4374.8,0.7082]
[1756813032119,0.4047,4374.9,4374.8,0.9402]
[1756813032513,0.4047,4374.9,4374.8,41.7402]
[1756813034424,3.2078,4375.0,4374.8,41.7402]
[1756813035224,3.2078,4375.0,4374.9,0.7082]
[1756813035722,3.8968,4375.6,4375.5,0.1902]
[1756813035924,4.46976593,4375.6,4375.5,0.5]
[1756813037424,4.46976593,4375.6,4375.5,0.3098]
[1756813039024,4.46976593,4375.6,4375.5,0.7082]
[1756813039226,0.689,4375.5,4375.4,0.232]
[1756813039822,0.689,4375.5,4375.4,0.5418]
[1756813040222,0.4047,4375.5,4375.4,0.732]
[1756813040424,0.689,4375.5,4375.4,0.732]
[1756813040630,0.4047,4375.5,4375.4,0.9402]
[1756813041423,3.2078,4375.6,4375.5,0.3098]
[1756813041730,3.4096,4375.6,4375.5,0.7082]
[1756813042118,3.6125,4375.6,4375.5,0.7082]
[1756813043618,3.8968,4375.6,4375.5,0.7082]
[1756813045028,3.8968,4375.6,4375.5,0.5418]
[1756813047130,3.8968,4375.6,4375.5,0.732]
[1756813047328,3.8968,4375.6,4375.5,0.9402]
[1756813047627,3.6125,4375.6,4375.5,0.9402]
[1756813047828,3.4096,4375.6,4375.5,0.9402]
[1756813048235,3.4096,4375.6,4375.5,1.0605]
[1756813048629,3.2078,4375.6,4375.5,1.0605]
[1756813049031,0.2843,4376.2,4375.6,0.3098]
[1756813049436,0.2018,4375.7,4375.6,0.7082]
[1756813049734,0.2843,4376.2,4375.6,0.3984]
[1756813049935,0.4047,4376.2,4376.1,0.1902]
[1756813050132,0.689,4376.2,4375.6,0.3098]
[1756813050337,0.689,4376.2,4375.8,0.5418]
[1756813050526,0.2843,4376.1,4375.9,0.3098]
[1756813050836,0.689,4376.0,4375.9,0.3098]
[1756813052035,0.689,4376.0,4375.9,0.5]
[1756813058936,0.689,4376.0,4375.9,0.5103]
[1756813059132,0.4047,4376.0,4375.9,0.7166]
[1756813059942,0.2018,4376.0,4375.9,0.7166]
[1756813060139,3.2078,4376.4,4375.9,0.7166]
[1756813060346,3.4964,4376.9,4376.3,0.2916]
[1756813060538,0.96104654,4376.8,4376.7,0.2063]
[1756813060842,0.3878,4376.8,4376.7,0.6984]
[1756813061038,0.2886,4376.4,4375.8,0.232]
[1756813061231,0.3878,4375.9,4375.8,0.6388]
[1756813061436,0.6764,4375.9,4375.8,41.4388]
[1756813061633,0.3878,4375.9,4375.8,41.7304]
[1756813062235,0.3878,4375.9,4375.8,0.9304]
[1756813062947,0.1899,4376.0,4375.9,0.6984]
[1756813064042,3.4964,4376.3,4376.0,0.2916]
[1756813064247,3.8842,4376.3,4376.2,0.6984]
[1756813064747,3.8842,4376.3,4376.2,0.4921]
[1756813065443,3.8842,4376.3,4376.2,0.2916]
[1756813066550,3.8842,4376.3,4376.2,0.4921]
[1756813066748,3.5956,4376.3,4376.2,0.6984]
[1756813067548,3.3977,4376.3,4376.2,0.6984]
[1756813068156,3.5956,4376.3,4376.2,0.6984]
[1756813068361,3.5956,4376.3,4376.2,0.9304]
[1756813068655,3.8842,4376.3,4376.2,0.7241]
[1756813069559,3.8842,4376.3,4376.2,0.9304]
[1756813071853,3.5956,4376.3,4376.2,0.9304]
[1756813074063,3.8842,4376.3,4376.2,0.9304]
[1756813074657,3.3977,4376.3,4376.2,0.9304]
[1756813074862,3.2078,4376.3,4376.2,0.9304]
[1756813076463,3.3977,4376.3,4376.2,0.6984]
[1756813076764,3.8842,4376.3,4376.2,0.7241]
[1756813077567,3.8842,4376.3,4376.2,0.4921]
[1756813077767,3.8842,4376.3,4376.2,0.7241]
[1756813079970,3.8842,4376.3,4376.2,0.5236]
[1756813080277,0.1899,4375.7,4375.6,3.6146]
[1756813080477,0.1899,4375.7,4375.6,4.1382]
[1756813080869,0.1899,4375.7,4375.6,44.9382]
[1756813081181,0.1899,4375.7,4375.6,44.7062]
[1756813081478,0.1899,4375.7,4375.6,44.9382]
[1756813081865,3.4964,4376.3,4375.6,44.6466]
[1756813082171,3.5956,4376.3,4376.2,0.6984]
[1756813082373,3.8842,4376.3,4376.2,0.9304]
[1756813082573,3.3977,4376.3,4376.2,0.9304]
[1756813083174,0.1899,4376.3,4376.2,0.9304]
[1756813083671,3.4964,4376.8,4376.3,0.2916]
[1756813083870,0.1899,4376.4,4376.3,0.6984]
[1756813085079,3.4964,4376.8,4376.3,0.4068]
[1756813085378,0.96169359,4376.7,4376.6,0.4068]
[1756813085573,1.25029359,4376.7,4376.6,0.9304]
[1756813085879,0.96169359,4376.7,4376.6,0.9304]
[1756813086079,0.3878,4376.7,4376.6,0.9304]
[1756813087784,0.3878,4376.7,4376.6,0.7241]
[1756813088075,0.1899,4376.7,4376.6,0.9304]
[1756813090676,0.1899,4376.7,4376.6,0.6984]
[1756813090881,0.7018,4376.7,4376.6,0.2916]
[1756813091380,0.7018,4376.7,4376.6,0.4943]
[1756813091782,0.4093,4376.4,4376.3,0.4347]
[1756813091981,0.7233,4376.4,4376.3,0.4347]
[1756813092282,0.4093,4376.4,4376.3,0.9109]
[1756813093076,0.2074,4376.4,4376.3,0.9109]
[1756813093484,0.7233,4376.4,4376.3,0.2857]
[1756813093685,0.4093,4376.2,4376.1,0.5177]
[1756813093877,0.7233,4376.2,4376.1,0.5177]
[1756813094383,0.314,4376.2,4376.0,0.232]
[1756813094578,0.4093,4376.1,4376.0,0.2857]
[1756813094777,3.2078,4376.3,4375.2,0.2857]
[1756813095077,0.2074,4375.4,4375.3,0.9109]
[1756813095276,0.2074,4375.4,4375.3,41.7109]
[1756813098085,0.314,4376.2,4375.3,41.4252]
[1756813098287,0.314,4376.2,4375.4,0.2857]
[1756813098886,0.2074,4375.6,4375.5,0.6252]
[1756813099284,0.2074,4375.6,4375.5,0.9109]
[1756813099484,0.4093,4375.6,4375.5,0.6789]
[1756813099683,0.4093,4375.6,4375.5,0.9109]
[1756813100581,0.4093,4375.6,4375.5,0.6789]
[1756813100777,0.7233,4375.6,4375.5,0.9109]
[1756813101483,0.7233,4375.6,4375.5,0.6789]
[1756813101683,0.7233,4375.6,4375.5,0.7204]
[1756813103790,0.7233,4375.6,4375.5,0.4884]
[1756813103991,0.7233,4375.6,4375.5,0.7204]
[1756813104791,0.7233,4375.6,4375.5,0.4884]
[1756813104991,0.7233,4375.6,4375.5,0.7204]
[1756813105685,0.7233,4375.6,4375.5,0.4884]
[1756813105894,0.7233,4375.6,4375.5,0.7204]
[1756813106099,0.7233,4375.6,4375.5,0.9109]
[1756813106293,3.2078,4375.7,4375.5,0.7427]
[1756813106489,3.2078,4376.3,4375.7,0.2857]
[1756813106689,3.2078,4376.3,4376.1,0.3932]
[1756813106690,0.5731366,4376.2,4376.1,0.3932]
[1756813106894,0.7805366,4376.2,4376.1,0.9109]
[1756813107395,0.2074,4376.2,4376.1,0.9109]
[1756813107798,0.9824028,4376.2,4376.1,0.9109]
[1756813107997,1.2964028,4376.2,4376.1,0.2857]
[1756813108291,1.2964028,4376.2,4375.9,0.232]
[1756813108592,0.4093,4376.0,4375.9,0.5177]
[1756813108798,0.7233,4376.0,4375.9,0.5177]
[1756813109497,0.7233,4376.0,4375.9,0.7204]
[1756813109696,0.4093,4376.0,4375.9,0.9109]
[1756813109897,0.2074,4376.0,4375.9,0.9109]
[1756813110197,0.2074,4376.0,4375.9,0.6789]
[1756813111101,3.2078,4376.3,4376.0,0.2857]
[1756813111400,0.78041102,4376.2,4376.1,0.6789]
[1756813111792,3.2078,4376.3,4376.1,0.3932]
[1756813111992,3.2078,4376.3,4376.2,0.6789]
[1756813112798,3.4152,4376.3,4376.2,0.6789]
[1756813113102,3.6171,4376.3,4376.2,0.6789]
[1756813113497,3.9311,4376.3,4376.2,0.2857]
[1756813114700,3.9311,4376.3,4376.2,0.4884]
[1756813116097,3.9311,4376.3,4376.1,0.2027]
[1756813116098,0.314,4376.2,4376.1,0.2027]
[1756813116295,0.7233,4376.2,4376.1,0.4884]
[1756813116501,0.7233,4376.2,4376.1,0.2857]
[1756813116904,0.4093,4375.9,4375.8,0.2857]
[1756813117205,0.7233,4375.9,4375.8,0.4884]
[1756813121602,0.7233,4375.9,4375.1,40.8]
[1756813121603,0.95183,4375.9,4375.1,0.2899]
[1756813121911,3.899,4375.2,4375.1,0.2899]
[1756813122609,3.899,4375.2,4375.1,0.4943]
[1756813123512,3.899,4375.2,4375.1,0.2899]
[1756813123712,4.47252726,4375.2,4375.1,0.2899]
[1756813124209,4.47252726,4375.2,4374.7,0.232]
[1756813124411,3.899,4375.2,4374.8,0.2899]
[1756813124607,3.899,4375.2,4374.7,0.232]
[1756813124809,0.1933,4374.8,4374.7,0.6311]
[1756813125208,0.386,4374.8,4374.7,0.6311]
[1756813125404,0.386,4374.8,4374.7,0.921]
[1756813127709,0.386,4374.8,4374.7,0.689]
[1756813127914,0.386,4374.8,4373.5,0.1175]
[1756813127915,0.9232,4374.8,4374.2,0.2899]
[1756813128116,3.899,4374.3,4374.2,0.2899]
[1756813128614,3.899,4374.3,4373.6,0.2899]
[1756813132814,3.899,4374.3,4374.2,0.4943]
[1756813137519,3.899,4374.3,4373.6,0.2899]
[1756813137717,3.4011,4373.8,4373.7,0.689]
[1756813138219,3.899,4373.8,4373.7,0.689]
[1756813139217,0.1933,4373.2,4373.1,0.689]
[1756813139425,0.6912,4373.2,4373.1,0.921]
[1756813139625,0.6912,4373.2,4373.1,0.689]
[1756813141020,0.386,4373.2,4373.1,0.689]
[1756813141221,0.386,4373.2,4373.1,0.4943]
[1756813141222,0.6912,4373.2,4373.1,0.4943]
[1756813143923,0.6912,4373.2,4373.1,0.689]
[1756813145721,0.386,4373.2,4373.1,0.689]
[1756813146519,0.1933,4373.2,4373.1,0.689]
[1756813147524,3.2078,4373.8,4373.2,0.2899]
[1756813147724,3.4011,4373.8,4373.7,0.689]
[1756813148124,3.899,4373.8,4373.7,0.689]
[1756813148430,3.5938,4373.8,4373.7,0.689]
[1756813149726,3.9076,4373.8,4373.7,0.689]
[1756813150815,3.5938,4373.8,4373.7,0.689]
[1756813151726,3.9076,4373.8,4373.7,0.689]
[1756813155333,3.9076,4373.8,4373.7,0.4943]
[1756813158140,4.48137304,4373.8,4373.7,0.4943]
[1756813159932,3.9076,4373.8,4373.7,0.6901]
[1756813160234,4.48186598,4373.8,4373.7,0.6901]
[1756813160428,4.48186598,4373.8,4373.7,0.4943]
[1756813160632,4.48186598,4373.8,4373.7,0.2899]
[1756813161935,4.48186598,4373.8,4373.7,0.4941]
[1756813167446,0.3138,4373.7,4372.7,0.3059]
[1756813167651,0.7038,4373.1,4373.0,0.7421]
[1756813168047,0.7038,4373.1,4373.0,0.9379]
[1756813168344,0.7038,4373.1,4373.0,0.5101]
[1756813168748,0.7038,4373.1,4373.0,0.7059]
[1756813168948,0.39,4373.1,4373.0,0.7059]
[1756813169554,0.7038,4373.1,4373.0,0.3059]
[1756813170051,0.7038,4373.1,4373.0,0.5101]
[1756813171848,0.3138,4373.0,4372.7,0.3059]
[1756813172151,0.1888,4372.6,4372.5,0.9379]
[1756813172743,0.1888,4372.6,4371.5,0.1187]
[1756813172744,0.39,4371.2,4369.3,6.5339276]
[1756813172947,0.39,4371.2,4369.8,0.3059]
[1756813172948,3.9116,4370.3,4369.8,0.3059]
[1756813173245,0.7038,4370.1,4369.0,0.1173]
[1756813173549,3.2078,4370.3,4370.0,2.37256667]
[1756813173752,0.20516887,4370.2,4370.1,0.7059]
[1756813174344,0.20516887,4370.2,4370.1,4.7059]
[1756813175752,0.20516887,4370.2,4370.1,0.7059]
[1756813175948,0.25596027,4370.2,4370.1,0.4]
[1756813176152,0.25596027,4370.2,4370.1,0.7059]
[1756813177650,3.2078,4370.8,4370.1,0.7059]
[1756813177856,0.61978163,4370.7,4370.6,0.7059]
[1756813178459,0.22978163,4370.7,4370.6,0.7059]
[1756813179361,0.41858163,4370.7,4370.6,0.7059]
[1756813183055,0.60888163,4370.7,4370.6,0.7059]
[1756813183261,0.60888163,4370.7,4370.6,0.7149]
[1756813184363,0.41858163,4370.7,4370.6,0.7149]
[1756813184570,0.22978163,4370.7,4370.6,0.7149]
[1756813184764,3.2078,4370.8,4370.7,0.3058]
[1756813185067,3.43723029,4370.8,4370.7,0.7168]
[1756813185269,3.63103029,4370.8,4370.7,0.7168]
[1756813186168,3.82133029,4370.8,4370.7,0.7168]
[1756813186467,4.11443029,4370.8,4370.7,0.7168]
[1756813186668,3.885,4370.8,4370.7,0.7168]
[1756813186867,4.11442295,4370.8,4370.7,0.7168]
[1756813187463,3.885,4370.8,4370.7,0.7168]
[1756813187761,4.11442933,4370.8,4370.7,0.7168]
[1756813189068,4.11442933,4370.8,4370.7,0.3058]
[1756813189769,4.11442933,4370.8,4370.7,0.512]
[1756813190167,4.11442933,4370.8,4370.3,0.235]
[1756813190168,0.1169,4370.5,4367.8,8.803]
[1756813190367,0.6772,4368.1,4367.8,3.2078]
[1756813190563,0.3841,4368.1,4366.5,3.2078]
[1756813190870,3.2078,4367.3,4367.2,2.01383932]
[1756813191068,0.238,4369.0,4367.7,0.411]
[1756813191069,3.2078,4367.8,4367.7,0.411]
[1756813191371,3.2078,4367.8,4367.7,0.649]
[1756813192169,3.2078,4367.8,4367.7,0.7168]
[1756813192371,3.2078,4367.8,4367.7,0.9548]
[1756813193161,3.2078,4367.8,4367.7,4.9548]
[1756813193661,3.2078,4367.8,4367.7,45.7548]
[1756813193864,3.2078,4367.8,4367.7,41.5168]
[1756813194064,3.2078,4367.8,4367.7,41.7548]
[1756813195273,3.2078,4367.8,4367.7,0.9548]
[1756813196371,3.4424286,4367.8,4367.7,0.9548]
[1756813197372,3.44251345,4367.8,4367.7,0.9548]
[1756813197872,3.44241476,4367.8,4367.7,0.7168]
[1756813198068,3.44241476,4367.8,4367.7,0.9548]
[1756813200071,3.44241476,4367.8,4367.7,0.75]
[1756813200274,3.44241476,4367.8,4367.7,0.5438]
[1756813200772,3.44241476,4367.8,4367.7,0.75]
[1756813200970,3.44241476,4367.8,4367.7,0.5438]
[1756813201476,3.44241476,4367.8,4367.7,0.9548]
[1756813202265,3.44241476,4367.8,4367.7,0.3058]
[1756813202471,4.10107766,4367.8,4367.7,0.5428]
[1756813204774,8.10107766,4367.8,4367.2,1.90863932]
[1756813204967,0.1144,4368.0,4367.2,1.90863932]
[1756813204968,3.2078,4367.3,4367.2,2.11483932]
[1756813205174,4.10107766,4367.3,4367.2,2.55663932]
[1756813205676,3.44241476,4367.3,4367.2,6.55663932]
[1756813206178,3.44241476,4367.3,4367.2,2.31963932]
[1756813206380,3.44241476,4367.3,4367.2,47.35663932]
[1756813206876,3.44241476,4367.3,4367.2,47.58561932]
[1756813207076,3.2078,4368.7,4368.6,0.7168]
[1756813207373,3.2078,4369.2,4369.0,0.116]
[1756813207574,0.82803258,4369.1,4369.0,0.4218]
[1756813207876,0.82803258,4369.1,4369.0,41.8698]
[1756813208976,0.65823258,4369.1,4369.0,41.8698]
[1756813211381,0.65823258,4369.1,4369.0,41.665]
[1756813213580,3.2078,4369.2,4369.1,0.6889]
[1756813215777,3.2078,4369.2,4369.1,0.9259]
[1756813216371,2.0562,4369.2,4369.1,5.15478]
[1756813216572,3.3221,4369.7,4369.5,0.41189]
[1756813216771,3.3221,4369.7,4369.6,0.237]
[1756813216979,3.2078,4369.7,4369.6,41.037]
[1756813217181,3.4921,4369.7,4369.6,41.037]
[1756813217780,0.2843,4370.1,4369.6,45.037]
[1756813217977,3.3221,4370.2,4369.6,41.21188]
[1756813218180,0.2843,4370.1,4369.7,0.64887]
[1756813218580,3.5308,4370.2,4369.7,0.64887]
[1756813218791,0.2843,4370.1,4369.7,0.64887]
[1756813218981,3.5308,4370.2,4369.8,0.41186]
[1756813219177,0.2843,4370.1,4369.9,33.203]
[1756813219382,0.2843,4370.0,4369.9,33.203]
[1756813219588,3.6064,4370.2,4369.9,33.203]
[1756813219784,3.6064,4370.2,4369.9,33.61485]
[1756813220075,0.3986,4370.2,4369.9,33.61485]